bitfinex/quotes_ETHUSD_20250821
["timestamp","ask_amount","ask_price","bid_price","bid_amount"]
[1755752181180,0.118,4308.9,4308.8,0.91821984]
[1755752181688,0.002,4308.9,4308.8,0.91821984]
[1755752181864,0.002,4308.9,4308.8,1.03421984]
[1755752183087,0.002,4308.9,4308.8,4.01505162]
[1755752183273,0.002,4308.9,4308.8,7.51484331]
[1755752186086,0.002,4308.9,4308.8,10.51484331]
[1755752188282,0.002,4308.9,4308.8,14.70484331]
[1755752190964,0.002,4308.9,4308.8,14.25344331]
[1755752191292,0.002,4308.9,4308.8,18.83537738]
[1755752191467,0.002,4308.9,4308.8,19.49537738]
[1755752192373,0.002,4308.9,4308.8,7.306]
[1755752192374,0.2963,4308.9,4308.8,7.306]
[1755752192567,0.7655,4308.9,4308.8,10.828]
[1755752192768,0.7655,4308.9,4308.8,6.638]
[1755752193899,0.002,4308.9,4308.8,17.47929763]
[1755752194063,0.002,4308.9,4308.8,17.93069763]
[1755752194266,0.002,4308.9,4308.8,20.02574188]
[1755752198497,0.002,4308.9,4308.8,17.7049101]
[1755752198707,0.002,4308.9,4308.8,21.4435101]
[1755752199500,0.002,4308.9,4308.8,23.76434188]
[1755752199708,0.002,4308.9,4308.8,21.4435101]
[1755752199912,0.002,4308.9,4308.8,23.76434188]
[1755752205410,0.002,4308.9,4308.8,24.22674188]
[1755752205608,0.7607,4308.9,4308.8,9.40104425]
[1755752205812,0.7607,4308.9,4308.8,10.828]
[1755752206013,0.7607,4308.9,4308.8,0.116]
[1755752206286,0.7607,4308.9,4308.8,3.522]
[1755752206630,0.7607,4308.9,4308.6,0.001]
[1755752206631,0.8767,4308.9,4308.6,0.001]
[1755752206826,3.0,4308.7,4306.9,0.626]
[1755752207028,7.85426585,4307.9,4307.4,0.698054]
[1755752207229,7.67976585,4307.5,4306.9,0.626]
[1755752207389,0.2905,4307.0,4306.9,1.324054]
[1755752207594,0.4065,4307.0,4306.9,1.324054]
[1755752207793,0.8747,4307.0,4306.9,0.626]
[1755752208424,0.2905,4307.0,4306.9,0.7604164]
[1755752210323,0.7587,4307.0,4306.9,0.7604164]
[1755752210491,0.7587,4307.0,4306.9,0.626]
[1755752210988,0.2905,4307.0,4306.9,0.626]
[1755752212934,0.7587,4307.0,4306.8,0.718164]
[1755752213100,0.7587,4307.0,4306.9,3.522]
[1755752213301,0.2905,4307.0,4306.9,3.522]
[1755752213828,0.2905,4307.0,4306.8,0.718164]
[1755752213829,0.7587,4307.0,4306.8,0.718164]
[1755752214126,0.2905,4307.0,4306.9,3.523]
[1755752214628,0.8747,4307.0,4306.9,3.523]
[1755752215898,0.4065,4307.0,4306.9,3.523]
[1755752216307,0.116,4307.3,4306.9,11.74178776]
[1755752216501,0.116,4307.3,4306.9,11.38516585]
[1755752217024,0.2905,4307.0,4306.9,3.523]
[1755752217206,0.2905,4307.0,4306.9,3.9912]
[1755752219715,0.2905,4307.0,4306.9,3.523]
[1755752220030,0.8747,4307.0,4306.9,3.523]
[1755752220997,0.8747,4307.0,4306.8,0.02]
[1755752221193,8.03196585,4306.9,4306.8,0.02]
[1755752221397,9.16631244,4306.9,4306.8,0.02]
[1755752221730,0.4065,4306.9,4306.8,0.02]
[1755752221929,0.116,4306.9,4306.8,0.02]
[1755752222228,0.4065,4306.9,4306.8,0.02]
[1755752222430,0.8747,4306.9,4306.8,0.02]
[1755752222638,0.002,4307.9,4306.9,3.0]
[1755752222798,0.116,4307.3,4307.1,7.56376585]
[1755752223004,0.116,4307.5,4307.2,4.30901693]
[1755752223208,0.116,4307.5,4307.2,3.84661693]
[1755752223449,0.116,4307.5,4307.2,3.8234]
[1755752223751,0.2905,4307.3,4307.2,3.525]
[1755752224513,0.7587,4307.3,4306.8,0.02]
[1755752224712,0.116,4307.1,4306.9,3.526]
[1755752225040,0.2905,4307.0,4306.9,6.526]
[1755752225207,0.116,4307.1,4307.0,3.0]
[1755752225738,0.4065,4307.1,4306.9,3.526]
[1755752227514,0.116,4307.1,4306.9,3.526]
[1755752227704,0.116,4307.1,4307.0,3.32161801]
[1755752228032,0.116,4307.1,4307.0,3.78401801]
[1755752228431,0.116,4307.1,4307.0,3.32161801]
[1755752230321,0.116,4307.1,4307.0,11.34778386]
[1755752230521,0.116,4307.1,4307.0,11.32456585]
[1755752230725,0.002,4307.9,4307.0,5.98850203]
[1755752230917,0.116,4307.6,4307.0,11.90876585]
[1755752231227,0.116,4307.6,4307.0,11.44056585]
[1755752231433,0.116,4307.6,4307.1,0.116]
[1755752231631,0.116,4307.6,4307.2,3.525]
[1755752231847,0.116,4307.6,4307.2,3.9875]
[1755752232445,0.002,4307.9,4307.5,0.2863]
[1755752232645,0.118,4307.9,4307.6,3.54721478]
[1755752232840,0.118,4307.9,4307.8,0.2863]
[1755752233521,0.002,4307.9,4307.8,0.3095137]
[1755752233718,0.002,4307.9,4307.8,0.7720137]
[1755752233923,0.002,4307.9,4307.8,0.2863]
[1755752234815,0.002,4307.9,4307.7,3.116]
[1755752236548,0.002,4307.9,4307.8,3.524]
[1755752238453,0.292,4307.9,4307.7,0.116]
[1755752238669,8.01376585,4307.8,4306.4,0.4635]
[1755752238879,0.83057659,4307.7,4306.9,3.525]
[1755752239157,0.29,4307.0,4306.9,6.525]
[1755752239451,0.29,4307.0,4306.9,3.525]
[1755752239662,0.29,4307.0,4306.8,0.42252]
[1755752239874,0.29,4307.0,4306.9,3.526]
[1755752240233,0.83057659,4307.7,4306.9,3.8123]
[1755752240436,0.45,4307.7,4306.9,3.8123]
[1755752240918,0.45,4307.7,4306.9,3.526]
[1755752244028,0.29,4307.0,4306.9,3.526]
[1755752245440,0.45,4307.6,4306.9,3.526]
[1755752245638,0.80137659,4307.5,4306.9,3.526]
[1755752245865,0.45,4307.6,4306.9,3.526]
[1755752249149,0.116,4307.0,4306.9,3.526]
[1755752249335,0.116,4307.0,4306.9,3.8123]
[1755752250265,0.116,4307.0,4306.9,4.2748]
[1755752251834,0.116,4307.0,4306.9,3.8123]
[1755752252944,0.406,4307.0,4306.8,0.021]
[1755752253258,0.406,4307.0,4306.9,3.524]
[1755752254382,0.116,4307.0,4306.9,3.524]
[1755752255649,0.116,4307.0,4306.9,3.8103]
[1755752261254,0.116,4307.0,4306.8,0.021]
[1755752261449,0.116,4307.0,4306.9,3.524]
[1755752261653,0.4127,4307.0,4306.9,3.524]
[1755752261883,0.116,4307.0,4306.9,3.524]
[1755752263688,0.4127,4307.0,4306.9,3.524]
[1755752263866,0.8755,4307.0,4306.9,3.524]
[1755752264489,0.8755,4307.0,4306.8,0.021]
[1755752264788,8.02656585,4306.9,4306.8,0.021]
[1755752265085,9.16719244,4306.9,4306.8,0.021]
[1755752267414,12.69119244,4306.9,4306.8,0.021]
[1755752271724,9.16719244,4306.9,4306.8,0.021]
[1755752272005,4.66462659,4306.9,4306.8,0.021]
[1755752272180,3.8207,4306.9,4306.8,0.021]
[1755752272574,0.2967,4306.9,4306.8,0.021]
[1755752272812,0.116,4307.0,4306.8,0.021]
[1755752272977,3.524,4306.9,4306.8,0.021]
[1755752273178,3.8207,4306.9,4306.8,0.021]
[1755752273379,5.01702659,4306.9,4306.8,0.021]
[1755752274080,13.04359244,4306.9,4306.8,0.021]
[1755752275117,12.58079244,4306.9,4306.8,0.021]
[1755752275427,13.04359244,4306.9,4306.8,0.021]
[1755752278994,12.58079244,4306.9,4306.8,0.021]
[1755752279891,13.04359244,4306.9,4306.8,0.021]
[1755752280801,9.05679244,4306.9,4306.8,0.021]
[1755752281008,12.58079244,4306.9,4306.8,0.021]
[1755752281230,13.04359244,4306.9,4306.8,0.021]
[1755752289414,12.58079244,4306.9,4306.8,0.021]
[1755752290040,13.04359244,4306.9,4306.8,0.021]
[1755752291144,12.58079244,4306.9,4306.8,0.021]
[1755752291334,12.28409244,4306.9,4306.8,0.021]
[1755752291501,8.76009244,4306.9,4306.8,0.021]
[1755752291697,12.28409244,4306.9,4306.8,0.021]
[1755752292011,12.59239244,4306.9,4306.8,0.021]
[1755752293732,9.06839244,4306.9,4306.8,0.021]
[1755752293935,12.28409244,4306.9,4306.8,0.3111]
[1755752296137,12.28409244,4306.9,4306.8,0.021]
[1755752297034,12.59239244,4306.9,4306.8,0.021]
[1755752300320,1.19632659,4306.9,4306.8,0.3111]
[1755752300509,3.524,4306.9,4306.8,0.7722]
[1755752304240,0.116,4307.0,4306.8,0.7722]
[1755752304542,0.116,4307.0,4306.9,0.4611]
[1755752304755,0.116,4307.0,4306.9,0.7512]
[1755752305656,0.116,4307.0,4306.9,0.8982346]
[1755752307753,0.116,4307.0,4306.9,0.92145315]
[1755752308154,0.116,4307.0,4306.9,0.8982346]
[1755752308960,0.116,4307.0,4306.9,0.92145315]
[1755752310038,0.116,4307.0,4306.9,0.8982346]
[1755752311667,0.116,4307.0,4306.9,1.5963706]
[1755752313546,0.116,4307.0,4306.9,1.1352706]
[1755752313744,0.116,4307.0,4306.9,1.5963706]
[1755752313957,0.116,4307.0,4306.9,1.449336]
[1755752319159,0.116,4307.0,4306.9,0.988236]
[1755752319479,7.98806585,4307.0,4306.9,0.698136]
[1755752319665,8.45076585,4307.0,4306.8,0.021]
[1755752319868,1.19737659,4306.9,4306.8,0.021]
[1755752320068,1.96837659,4306.9,4306.8,0.021]
[1755752320453,13.05514244,4306.9,4306.8,0.021]
[1755752325989,4.72037659,4306.9,4306.8,0.3349]
[1755752326191,3.523,4306.9,4306.8,0.021]
[1755752326487,11.82876585,4306.9,4306.8,0.021]
[1755752336266,7.85596585,4306.9,4306.8,0.021]
[1755752336591,11.37896585,4306.9,4306.8,0.021]
[1755752339285,11.82876585,4306.9,4306.8,0.021]
[1755752339863,13.02324243,4306.9,4306.8,0.021]
[1755752340667,16.02324243,4306.9,4306.8,0.021]
[1755752341064,16.68324243,4306.9,4306.8,0.021]
[1755752341290,3.66,4306.8,4306.3,0.001]
[1755752341463,10.97196585,4306.4,4306.3,0.001]
[1755752341670,16.24446244,4306.4,4306.3,0.001]
[1755752341991,16.69426244,4306.4,4306.3,0.001]
[1755752347599,17.35426244,4306.4,4306.3,0.001]
[1755752350435,17.35426244,4306.4,4305.0,0.4443]
[1755752350436,33.66,4306.3,4302.1,0.12137535]
[1755752350602,0.66,4305.0,4304.0,0.4443]
[1755752350801,7.56376585,4304.1,4304.0,0.4443]
[1755752351029,11.10176585,4304.1,4304.0,0.7537]
[1755752351599,3.538,4304.1,4304.0,0.7537]
[1755752352505,3.538,4304.1,4304.0,0.3094]
[1755752352731,3.538,4304.1,4304.0,0.7728]
[1755752357202,3.538,4304.1,4304.0,0.3094]
[1755752357408,3.538,4304.1,4304.0,0.7728]
[1755752357636,3.538,4304.1,4304.0,0.3094]
[1755752358459,7.56376585,4304.3,4304.0,0.7728]
[1755752358735,3.538,4304.2,4304.0,0.7728]
[1755752358924,3.538,4304.2,4304.1,0.4634]
[1755752359134,3.538,4304.2,4304.1,0.7728]
[1755752359347,3.8259,4304.2,4303.3,0.17119674]
[1755752359514,7.56376585,4303.9,4303.3,0.17119674]
[1755752359713,11.10076585,4303.9,4303.3,0.17119674]
[1755752359910,11.10076585,4303.9,4303.8,0.3294]
[1755752360114,1.13896658,4304.2,4303.8,0.7928]
[1755752360450,7.56376585,4304.1,4303.9,0.4634]
[1755752360613,3.537,4304.0,4303.9,0.4634]
[1755752360812,3.653,4304.0,4303.9,0.4634]
[1755752361013,3.653,4304.0,4303.9,0.7728]
[1755752363351,11.21676585,4304.0,4303.9,0.7728]
[1755752364211,0.116,4304.0,4303.9,0.7728]
[1755752364413,11.21576585,4304.0,4303.9,0.7728]
[1755752366231,0.116,4304.0,4303.9,0.7728]
[1755752366430,3.651,4304.0,4303.9,0.7728]
[1755752369950,11.21476585,4304.0,4303.9,0.3094]
[1755752370525,11.21476585,4304.0,4303.8,0.02]
[1755752370526,12.62414243,4304.0,4303.8,0.02]
[1755752370745,12.33624243,4304.0,4303.8,0.02]
[1755752370946,12.33624243,4304.0,4303.9,0.3094]
[1755752371266,3.651,4304.0,4303.9,0.3094]
[1755752371566,11.21476585,4304.0,4303.9,0.7728]
[1755752371760,11.21476585,4304.0,4303.9,0.3094]
[1755752371961,11.21376585,4304.0,4303.9,0.7728]
[1755752372124,7.67976585,4304.0,4303.9,0.7728]
[1755752372323,11.21376585,4304.0,4303.9,0.7728]
[1755752372956,11.21376585,4304.0,4303.9,0.3094]
[1755752373373,11.21376585,4304.0,4303.8,0.02]
[1755752373865,11.21376585,4304.0,4303.9,0.3094]
[1755752375988,11.21376585,4304.0,4303.8,0.02]
[1755752375989,11.50166585,4304.0,4303.8,0.02]
[1755752377026,12.69861244,4304.0,4303.8,0.02]
[1755752377232,0.4678,4303.9,4303.8,0.02]
[1755752377447,0.7557,4303.9,4303.8,0.02]
[1755752383184,0.2879,4303.9,4303.8,0.02]
[1755752383500,0.7628,4303.9,4303.8,0.02]
[1755752383693,2.08015124,4303.9,4303.8,0.02]
[1755752388075,1.60525124,4303.9,4303.8,0.02]
[1755752391298,5.13525124,4303.9,4303.8,0.02]
[1755752393104,5.13425124,4303.9,4303.8,0.02]
[1755752394175,1.31735124,4303.9,4303.8,0.02]
[1755752394377,4.84635124,4303.9,4303.8,0.318]
[1755752394584,4.84635124,4303.9,4303.8,0.757]
[1755752394771,4.84635124,4303.9,4303.8,0.318]
[1755752395414,4.84635124,4303.9,4303.8,0.02]
[1755752396315,0.116,4304.0,4303.8,0.318]
[1755752396611,3.529,4303.9,4303.8,0.757]
[1755752397019,3.528,4303.9,4303.8,0.757]
[1755752398818,0.116,4304.0,4303.8,0.757]
[1755752398979,3.529,4303.9,4303.8,0.318]
[1755752399177,3.529,4303.9,4303.8,0.757]
[1755752400323,0.116,4304.0,4303.8,0.757]
[1755752400634,0.116,4304.0,4303.9,0.439]
[1755752400916,0.116,4304.0,4303.9,0.76023474]
[1755752401413,0.116,4304.0,4303.9,0.737]
[1755752402311,0.116,4304.0,4303.9,0.8825591]
[1755752402487,0.116,4304.0,4303.9,0.90579384]
[1755752403010,0.116,4304.0,4303.9,0.8825591]
[1755752403816,0.116,4304.6,4303.9,0.9985591]
[1755752404114,0.116,4304.6,4304.0,0.439]
[1755752404314,0.116,4304.6,4304.5,0.298]
[1755752404716,0.116,4304.6,4303.8,0.718591]
[1755752404717,7.96886585,4304.6,4304.0,0.439]
[1755752404904,7.56376585,4304.1,4303.8,0.459]
[1755752405231,0.4051,4303.9,4303.8,0.02]
[1755752405579,0.88,4303.9,4303.8,0.02]
[1755752405784,2.07747659,4303.9,4303.8,0.02]
[1755752406325,5.13757659,4303.9,4303.8,0.02]
[1755752406488,5.61247659,4303.9,4303.8,0.02]
[1755752407328,12.41124244,4303.9,4303.8,0.318]
[1755752407493,0.116,4303.9,4303.8,0.318]
[1755752407682,3.65,4303.9,4303.8,0.318]
[1755752408311,3.65,4303.9,4303.8,0.02]
[1755752408312,3.9391,4303.9,4303.8,0.02]
[1755752408905,4.414,4303.9,4303.8,0.02]
[1755752409087,3.9391,4303.9,4303.8,0.02]
[1755752409295,11.50286585,4303.9,4303.8,0.02]
[1755752411823,12.70064243,4303.9,4303.8,0.02]
[1755752412724,12.41154243,4303.9,4303.8,0.02]
[1755752412928,12.70474243,4303.9,4303.8,0.02]
[1755752413113,13.79984243,4303.9,4303.8,0.02]
[1755752415001,16.79984243,4303.9,4303.8,0.02]
[1755752415801,13.26584243,4303.9,4303.8,0.02]
[1755752416001,16.79984243,4303.9,4303.8,0.02]
[1755752416231,13.26584243,4303.9,4303.8,0.02]
[1755752416434,16.79984243,4303.9,4303.8,0.02]
[1755752417111,13.26584243,4303.9,4303.8,0.02]
[1755752417313,16.79984243,4303.9,4303.8,0.02]
[1755752419522,10.26584243,4303.9,4303.8,0.02]
[1755752419721,13.79884243,4303.9,4303.8,0.02]
[1755752421946,0.66,4303.8,4303.3,0.001]
[1755752422114,7.97296585,4303.4,4303.3,0.001]
[1755752422440,11.50596585,4303.4,4303.3,0.001]
[1755752422641,11.94106585,4303.4,4303.3,0.001]
[1755752424545,11.50596585,4303.4,4303.3,0.001]
[1755752424715,13.09166244,4303.4,4303.3,0.001]
[1755752426219,13.31656244,4303.4,4303.3,0.001]
[1755752426419,13.75166244,4303.4,4303.3,0.001]
[1755752428642,9.78356244,4303.4,4303.3,0.001]
[1755752428845,13.31456244,4303.4,4303.3,0.001]
[1755752429048,13.31456244,4303.4,4303.3,0.3153]
[1755752429049,1.26659659,4303.4,4303.3,0.3153]
[1755752429249,11.21176585,4303.4,4303.3,0.7525]
[1755752429421,11.50496585,4303.4,4303.3,0.001]
[1755752429622,11.94006585,4303.4,4303.3,0.001]
[1755752429820,12.16496585,4303.4,4303.3,0.001]
[1755752430020,9.23297244,4303.4,4303.3,0.001]
[1755752430225,13.86007244,4303.4,4303.3,0.001]
[1755752431232,0.66,4303.3,4301.8,0.02]
[1755752431472,7.56376585,4301.9,4301.8,0.02]
[1755752431764,11.10076585,4301.9,4301.8,0.7715]
[1755752432548,11.10076585,4301.9,4301.8,0.3343]
[1755752433603,11.10076585,4301.9,4301.8,0.02]
[1755752433924,12.05396585,4301.9,4301.8,0.02]
[1755752435857,0.9532,4301.9,4301.8,0.02]
[1755752436184,11.76176585,4301.9,4301.8,0.02]
[1755752436472,13.12604243,4301.9,4301.8,0.02]
[1755752436842,8.92804243,4301.9,4301.8,0.02]
[1755752437043,12.27694243,4301.9,4301.8,0.3343]
[1755752437246,0.66,4302.9,4301.8,0.7715]
[1755752437449,3.537,4302.8,4301.8,0.3343]
[1755752437693,6.0241,4303.7,4301.9,0.4372]
[1755752437987,7.56376585,4302.5,4301.9,0.4372]
[1755752438268,7.56376585,4302.5,4302.4,0.3143]
[1755752438468,11.10176585,4302.5,4302.4,0.3143]
[1755752438779,11.10176585,4302.5,4302.4,0.7515]
[1755752440485,11.10076585,4302.5,4302.4,0.7515]
[1755752440848,5.589,4303.7,4302.4,0.7515]
[1755752441169,7.56376585,4303.2,4302.5,0.4391]
[1755752441465,7.56376585,4302.9,4302.5,0.4391]
[1755752441671,0.116,4302.6,4302.5,0.4391]
[1755752441867,3.658,4302.6,4302.5,0.7422]
[1755752443978,11.22176585,4302.6,4302.5,0.7422]
[1755752444498,7.67976585,4302.6,4302.5,0.7422]
[1755752444779,11.22076585,4302.6,4302.5,0.7422]
[1755752444945,3.657,4302.6,4302.5,0.7422]
[1755752445577,0.116,4302.6,4302.5,0.7422]
[1755752445777,0.116,4302.6,4302.5,1.11642]
[1755752447981,0.116,4302.6,4302.5,0.7422]
[1755752449068,0.002,4302.8,4302.5,0.7654423]
[1755752449267,0.002,4302.8,4302.6,0.4391]
[1755752449455,0.002,4302.8,4302.7,0.3031]
[1755752449660,0.002,4302.8,4302.7,0.7587969]
[1755752449962,0.002,4302.8,4302.7,1.1978969]
[1755752451264,0.002,4302.8,4302.7,0.7422]
[1755752451778,0.002,4302.8,4302.7,0.91743373]
[1755752460374,0.002,4302.8,4302.7,11.5044408]
[1755752460574,0.002,4302.8,4302.7,11.48119958]
[1755752460812,0.002,4302.8,4302.7,11.71319958]
[1755752461416,0.002,4302.8,4302.7,8.85785369]
[1755752462490,0.002,4302.8,4302.7,11.84197575]
[1755752462696,0.002,4302.8,4302.7,14.17797575]
[1755752462896,0.002,4302.8,4302.7,14.41262944]
[1755752466938,0.002,4303.3,4303.2,5.43585201]
[1755752467137,5.587,4306.9,4303.7,2.452]
[1755752467296,0.116,4305.6,4304.7,11.52686585]
[1755752467495,0.116,4305.6,4304.7,17.5049081]
[1755752467734,0.4391,4306.3,4304.7,17.9440081]
[1755752467930,0.116,4305.9,4304.7,18.0600081]
[1755752468096,0.116,4305.9,4304.7,18.98799614]
[1755752469308,0.116,4305.9,4304.7,16.66495389]
[1755752469620,0.116,4305.9,4304.7,18.98799614]
[1755752469793,0.5551,4306.3,4304.7,18.98799614]
[1755752470436,0.116,4306.3,4304.7,18.98799614]
[1755752470842,0.4391,4306.6,4304.7,18.98799614]
[1755752471015,0.5551,4306.6,4304.7,18.98799614]
[1755752472210,0.02,4306.8,4305.2,10.54653831]
[1755752472413,0.02,4306.8,4305.2,17.40063831]
[1755752472614,0.02,4306.8,4305.2,19.12325827]
[1755752474649,0.02,4306.8,4305.2,19.29912265]
[1755752475846,0.02,4306.8,4305.6,13.54632252]
[1755752476033,0.02,4306.8,4305.6,21.59242252]
[1755752476344,0.02,4306.8,4305.6,22.14362252]
[1755752476512,0.02,4306.8,4305.6,22.68720772]
[1755752476716,0.022,4305.8,4305.6,22.68720772]
[1755752477745,0.022,4305.8,4305.6,22.78027972]
[1755752478852,0.022,4305.8,4305.7,5.98250272]
[1755752479035,0.02,4306.8,4305.7,4.4103]
[1755752479245,0.02,4306.8,4306.7,11.22376585]
[1755752479430,0.02,4306.8,4306.7,16.13085389]
[1755752479918,0.02,4306.8,4306.7,16.56605389]
[1755752480654,0.3072,4306.8,4306.7,4.04398804]
[1755752480816,0.7757,4306.8,4306.7,6.664]
[1755752482667,0.7757,4306.8,4306.1,0.3072]
[1755752482816,0.4685,4306.7,4306.2,3.548]
[1755752483159,0.4685,4306.7,4306.3,3.548]
[1755752483160,0.116,4306.5,4306.3,3.548]
[1755752483449,0.7557,4306.4,4306.3,3.548]
[1755752483771,0.8717,4306.4,4306.3,3.548]
[1755752483918,0.8717,4306.4,4306.2,3.548]
[1755752484119,0.4685,4306.3,4306.2,3.548]
[1755752484346,0.7557,4306.3,4306.2,3.548]
[1755752485422,0.7557,4306.3,4305.3,4.19]
[1755752485639,0.116,4305.7,4305.4,3.548]
[1755752485824,0.2872,4305.5,4305.4,3.548]
[1755752486027,0.7557,4305.5,4305.4,3.548]
[1755752488232,0.7557,4305.5,4305.2,4.36264773]
[1755752488233,0.7557,4305.5,4305.2,0.17264773]
[1755752488549,0.116,4305.3,4305.2,3.548]
[1755752488864,0.8717,4305.3,4305.2,3.548]
[1755752489886,0.2872,4305.3,4305.2,3.72285297]
[1755752490046,0.2872,4305.3,4305.2,4.09513827]
[1755752490449,0.116,4305.5,4305.2,4.41023827]
[1755752490643,0.116,4305.5,4305.3,0.02322718]
[1755752491147,0.4685,4305.9,4305.3,0.02322718]
[1755752491360,0.116,4305.7,4305.4,0.02322664]
[1755752491558,0.1609,4305.5,4305.2,0.17485297]
[1755752491758,0.1609,4305.5,4305.3,3.547]
[1755752491964,0.116,4305.7,4305.3,3.547]
[1755752492284,0.4685,4306.1,4305.3,5.74461778]
[1755752492285,0.116,4305.9,4305.3,5.74461778]
[1755752493460,0.116,4305.9,4305.4,3.02322664]
[1755752493881,0.116,4305.9,4305.4,3.0]
[1755752494084,0.002,4305.7,4305.4,3.0]
[1755752495853,0.002,4305.7,4305.5,0.0232261]
[1755752496054,0.002,4305.7,4305.6,6.546]
[1755752496887,0.002,4305.7,4305.6,6.8611]
[1755752497480,0.002,4305.7,4305.6,6.546]
[1755752498567,0.2892,4305.7,4305.6,6.546]
[1755752499075,0.7577,4305.7,4305.6,6.546]
[1755752500555,0.2892,4305.7,4305.6,6.546]
[1755752500957,0.7577,4305.7,4305.6,6.546]
[1755752502095,0.7577,4305.7,4305.6,3.543]
[1755752502096,0.7416,4305.7,4305.6,3.543]
[1755752502664,0.7416,4305.7,4305.2,0.1710649]
[1755752502965,0.116,4305.3,4305.1,3.544]
[1755752503186,0.7537,4305.2,4305.1,3.544]
[1755752505930,0.7537,4305.2,4305.1,0.001]
[1755752506818,0.3013,4305.2,4305.1,0.17522924]
[1755752507021,0.3013,4305.2,4305.1,0.001]
[1755752510710,0.7537,4305.2,4305.1,0.1769731]
[1755752510910,0.7537,4305.2,4305.1,0.001]
[1755752511843,1.05539127,4305.2,4305.1,0.001]
[1755752512562,0.7537,4305.2,4305.1,0.001]
[1755752521970,4.2917,4305.2,4305.1,0.001]
[1755752524374,3.8393,4305.2,4305.1,0.001]
[1755752525448,0.3013,4305.2,4305.1,0.001]
[1755752525650,3.8393,4305.2,4305.1,0.001]
[1755752525874,5.4914511,4305.2,4305.1,0.001]
[1755752526059,5.0390511,4305.2,4305.1,0.001]
[1755752526382,5.4914511,4305.2,4305.1,0.001]
[1755752530481,9.1514511,4305.2,4305.1,0.001]
[1755752533158,3.66,4305.1,4304.8,0.02]
[1755752533486,11.66431096,4304.9,4304.8,0.02]
[1755752534155,12.11481096,4304.9,4304.8,0.02]
[1755752535865,14.99081096,4304.9,4304.8,0.02]
[1755752537490,15.65081096,4304.9,4304.8,0.02]
[1755752537790,3.66,4304.8,4304.7,0.001]
[1755752537967,3.9585,4304.8,4304.7,0.001]
[1755752538297,4.409,4304.8,4304.7,0.001]
[1755752538764,7.945,4304.8,4304.7,0.001]
[1755752539763,3.2985,4304.8,4304.7,0.001]
[1755752539961,8.10829647,4304.8,4304.7,0.001]
[1755752541182,4.57229647,4304.8,4304.7,0.001]
[1755752541385,7.80979647,4304.8,4304.7,0.001]
[1755752541559,4.27379647,4304.8,4304.7,0.2942]
[1755752541758,7.80979647,4304.8,4304.7,0.001]
[1755752542162,8.55879647,4304.8,4304.7,0.001]
[1755752542897,9.21879647,4304.8,4304.7,0.001]
[1755752544086,5.68279647,4304.8,4304.7,0.001]
[1755752544456,9.21879647,4304.8,4304.7,0.001]
[1755752545290,0.66,4304.7,4304.4,0.001]
[1755752545488,11.66431096,4304.5,4304.4,0.001]
[1755752545687,12.11481096,4304.5,4304.4,0.001]
[1755752546979,11.99881096,4304.5,4304.4,0.001]
[1755752547869,11.99881096,4304.5,4303.8,0.021]
[1755752547870,0.66,4304.3,4303.8,0.021]
[1755752548069,10.88831096,4303.9,4303.8,0.021]
[1755752548280,16.23274206,4303.9,4303.8,0.021]
[1755752548488,16.68324206,4303.9,4303.8,0.021]
[1755752549017,16.23274206,4303.9,4303.8,0.021]
[1755752550792,12.69674206,4303.9,4303.8,0.021]
[1755752551119,16.23174206,4303.9,4303.8,0.021]
[1755752551326,16.39934206,4303.9,4303.8,0.021]
[1755752555749,16.23174206,4303.9,4303.8,0.021]
[1755752555960,16.23074206,4303.9,4303.8,0.021]
[1755752556836,16.34674206,4303.9,4303.8,0.021]
[1755752557529,16.79724206,4303.9,4303.8,0.021]
[1755752558944,16.34674206,4303.9,4303.8,0.021]
[1755752559107,16.79724206,4303.9,4303.8,0.021]
[1755752559310,16.34674206,4303.9,4303.8,0.021]
[1755752560115,16.34674206,4303.9,4302.9,0.001]
[1755752560116,0.66,4303.8,4302.9,0.001]
[1755752560321,7.58981096,4303.0,4302.9,0.001]
[1755752560547,11.23881096,4303.0,4302.9,0.2942]
[1755752560711,11.23881096,4303.0,4302.9,0.7531]
[1755752562355,15.18551096,4303.0,4302.9,0.001]
[1755752562556,15.18551096,4303.0,4301.8,0.02]
[1755752562557,3.66,4302.9,4301.8,0.02]
[1755752562772,10.58981096,4301.9,4301.8,0.02]
[1755752563053,14.24081096,4301.9,4301.8,0.3154]
[1755752563353,10.70581096,4301.9,4301.8,0.3154]
[1755752563527,11.77639206,4301.9,4301.8,0.3154]
[1755752563728,15.31139206,4301.9,4301.8,0.3154]
[1755752564253,15.31139206,4301.9,4301.8,0.02]
[1755752564419,15.31139206,4301.9,4301.8,0.3154]
[1755752565045,15.31139206,4301.9,4301.8,0.7815]
[1755752565559,15.31139206,4301.9,4301.8,0.02]
[1755752565722,15.31139206,4301.9,4301.8,0.3154]
[1755752566158,11.77639206,4301.9,4301.8,0.3154]
[1755752566358,15.31039206,4301.9,4301.8,0.7815]
[1755752567259,15.98919206,4301.9,4301.8,0.02]